[Event "*** Titled Tuesday Blitz"]
[Site "Chess.com"]
[Date "2020.04.21"]
[Round "4"]
[White "kpio91"]
[Black "DrVitman"]
[Result "1-0"]
[WhiteElo "2777"]
[BlackElo "2535"]
[TimeControl "180+1"]
[EndTime "10:40:56 PDT"]
[Termination "kpio91 won on time"]

1. Nf3 {[%clk 0:03:00.9]} 1... Nf6 {[%clk 0:02:59.5]} 2. d4 {[%clk 0:03:00.6]}
2... g6 {[%clk 0:02:59]} 3. g3 {[%clk 0:02:59.2]} 3... Bg7 {[%clk 0:02:57.9]} 4.
Bg2 {[%clk 0:02:59.4]} 4... O-O {[%clk 0:02:58.3]} 5. O-O {[%clk 0:03:00.1]}
5... d6 {[%clk 0:02:58.4]} 6. a4 {[%clk 0:02:59.9]} 6... c6 {[%clk 0:02:25]} 7.
a5 {[%clk 0:02:59.5]} 7... Bf5 {[%clk 0:02:23.6]} 8. b4 {[%clk 0:02:50.6]} 8...
Na6 {[%clk 0:02:14.6]} 9. c3 {[%clk 0:02:47.4]} 9... Qc8 {[%clk 0:02:14.8]} 10.
Re1 {[%clk 0:02:42]} 10... Bh3 {[%clk 0:02:14.4]} 11. e4 {[%clk 0:02:40.5]}
11... Bxg2 {[%clk 0:02:04.2]} 12. Kxg2 {[%clk 0:02:41.4]} 12... Nc7 {[%clk
0:02:04.6]} 13. Nbd2 {[%clk 0:02:11.6]} 13... Nd7 {[%clk 0:02:03.4]} 14. Qb3
{[%clk 0:02:08.4]} 14... b5 {[%clk 0:01:54.4]} 15. c4 {[%clk 0:01:58.4]} 15...
Rb8 {[%clk 0:01:48.4]} 16. Rb1 {[%clk 0:01:50.9]} 16... c5 {[%clk 0:01:43.7]}
17. bxc5 {[%clk 0:01:47.4]} 17... dxc5 {[%clk 0:01:44.6]} 18. d5 {[%clk
0:01:47.6]} 18... Qa6 {[%clk 0:01:39.3]} 19. Qa2 {[%clk 0:01:30.9]} 19... bxc4
{[%clk 0:01:34.7]} 20. Rxb8 {[%clk 0:01:26.7]} 20... Rxb8 {[%clk 0:01:35.6]} 21.
Nxc4 {[%clk 0:01:26.9]} 21... Rb4 {[%clk 0:01:27.5]} 22. Nfd2 {[%clk 0:01:17.5]}
22... Nb5 {[%clk 0:01:22.2]} 23. Re3 {[%clk 0:00:57.1]} 23... Nd6 {[%clk
0:01:10]} 24. Nxd6 {[%clk 0:00:29]} 24... exd6 {[%clk 0:01:10.9]} 25. Qc2 {[%clk
0:00:29]} 25... Qxa5 {[%clk 0:01:02.1]} 26. Ra3 {[%clk 0:00:28.7]} 26... Qc7
{[%clk 0:01:02.1]} 27. Qa2 {[%clk 0:00:28.4]} 27... Rb7 {[%clk 0:00:56.9]} 28.
Nc4 {[%clk 0:00:28.5]} 28... Ne5 {[%clk 0:00:57.6]} 29. Na5 {[%clk 0:00:26]}
29... Rb5 {[%clk 0:00:57.3]} 30. Bf4 {[%clk 0:00:20.7]} 30... h5 {[%clk
0:00:44.3]} 31. Bxe5 {[%clk 0:00:20.1]} 31... Bxe5 {[%clk 0:00:45.2]} 32. Nc4
{[%clk 0:00:18.4]} 32... a5 {[%clk 0:00:43.9]} 33. Rxa5 {[%clk 0:00:11]} 33...
Rxa5 {[%clk 0:00:37]} 34. Qxa5 {[%clk 0:00:10.9]} 34... Qe7 {[%clk 0:00:37.5]}
35. Qd2 {[%clk 0:00:05.8]} 35... h4 {[%clk 0:00:35.2]} 36. f4 {[%clk 0:00:05.8]}
36... Bd4 {[%clk 0:00:30.6]} 37. Qd3 {[%clk 0:00:05.7]} 37... hxg3 {[%clk
0:00:28.8]} 38. hxg3 {[%clk 0:00:06.6]} 38... Kg7 {[%clk 0:00:15.8]} 39. Kf3
{[%clk 0:00:06.2]} 39... Qd8 {[%clk 0:00:10.9]} 40. Kg2 {[%clk 0:00:03.6]} 40...
Qe7 {[%clk 0:00:10.6]} 41. Qe2 {[%clk 0:00:02.7]} 41... Qd7 {[%clk 0:00:09.2]}
42. Qf3 {[%clk 0:00:02.3]} 42... f6 {[%clk 0:00:05.9]} 43. Qe2 {[%clk
0:00:01.6]} 43... Qb5 {[%clk 0:00:05.1]} 44. Qd3 {[%clk 0:00:02.5]} 44... Qa6
{[%clk 0:00:04.3]} 45. Kh3 {[%clk 0:00:02.9]} 45... Qa1 {[%clk 0:00:02.6]} 46.
Qe2 {[%clk 0:00:03]} 46... Qh1+ {[%clk 0:00:02.2]} 47. Qh2 {[%clk 0:00:02.9]}
47... Qxe4 {[%clk 0:00:01.9]} 48. Qa2 {[%clk 0:00:01.8]} 1-0

[Event "*** Titled Tuesday Blitz"]
[Site "Chess.com"]
[Date "2020.04.21"]
[Round "4"]
[White "Bigfish1995"]
[Black "albi1999"]
[Result "1-0"]
[WhiteElo "3062"]
[BlackElo "2594"]
[TimeControl "180+1"]
[EndTime "10:40:57 PDT"]
[Termination "Bigfish1995 won by resignation"]

1. e4 {[%clk 0:02:24.9]} 1... e5 {[%clk 0:02:59.3]} 2. Nf3 {[%clk 0:02:25]} 2...
Nc6 {[%clk 0:02:59.5]} 3. Bc4 {[%clk 0:02:25.3]} 3... Bc5 {[%clk 0:02:57.8]} 4.
b4 {[%clk 0:02:25.2]} 4... Bxb4 {[%clk 0:02:57.2]} 5. c3 {[%clk 0:02:25.4]} 5...
Be7 {[%clk 0:02:56.9]} 6. d4 {[%clk 0:02:25.7]} 6... Na5 {[%clk 0:02:57.2]} 7.
Nxe5 {[%clk 0:02:24.5]} 7... Nxc4 {[%clk 0:02:56.9]} 8. Nxc4 {[%clk 0:02:25.4]}
8... d5 {[%clk 0:02:57.1]} 9. exd5 {[%clk 0:02:21.4]} 9... Nf6 {[%clk
0:02:54.9]} 10. Qa4+ {[%clk 0:02:12.7]} 10... Bd7 {[%clk 0:02:20.5]} 11. Qb3
{[%clk 0:02:11.4]} 11... Nxd5 {[%clk 0:02:09.1]} 12. Qxb7 {[%clk 0:02:05.6]}
12... Nb6 {[%clk 0:02:05.2]} 13. Ne5 {[%clk 0:02:05.4]} 13... O-O {[%clk
0:02:02]} 14. O-O {[%clk 0:02:05]} 14... Be6 {[%clk 0:01:48.1]} 15. Nc6 {[%clk
0:02:01.5]} 15... Qd7 {[%clk 0:01:48]} 16. Nxe7+ {[%clk 0:02:01.4]} 16... Qxe7
{[%clk 0:01:48.9]} 17. Ba3 {[%clk 0:02:01.4]} 17... Qg5 {[%clk 0:01:44]} 18.
Qxc7 {[%clk 0:01:24.5]} 18... Rfc8 {[%clk 0:01:22.6]} 19. Qg3 {[%clk 0:01:22.4]}
19... Qxg3 {[%clk 0:01:15.2]} 20. hxg3 {[%clk 0:01:23.3]} 20... Na4 {[%clk
0:01:13.6]} 21. Rc1 {[%clk 0:01:18.7]} 21... Rc6 {[%clk 0:01:01.9]} 22. f3
{[%clk 0:01:11.3]} 22... h6 {[%clk 0:00:53.9]} 23. g4 {[%clk 0:01:09.1]} 23...
Rac8 {[%clk 0:00:52.5]} 24. Bb4 {[%clk 0:01:08.8]} 24... Ra8 {[%clk 0:00:36.9]}
25. Ba5 {[%clk 0:00:39.7]} 25... Rac8 {[%clk 0:00:29.9]} 26. Kf2 {[%clk
0:00:36.7]} 26... Kh7 {[%clk 0:00:22.5]} 27. Rc2 {[%clk 0:00:27.2]} 27... f5
{[%clk 0:00:20.6]} 28. d5 {[%clk 0:00:17.4]} 28... Bxd5 {[%clk 0:00:20]} 29.
gxf5 {[%clk 0:00:18]} 29... Rf8 {[%clk 0:00:19]} 30. g4 {[%clk 0:00:16.9]} 30...
g6 {[%clk 0:00:19.2]} 31. Bb4 {[%clk 0:00:17]} 31... Rf7 {[%clk 0:00:18.2]} 32.
Rd2 {[%clk 0:00:17.3]} 32... Nb6 {[%clk 0:00:15.9]} 33. Ba5 {[%clk 0:00:10.1]}
33... Rc5 {[%clk 0:00:15.6]} 34. Bxb6 {[%clk 0:00:10.2]} 34... axb6 {[%clk
0:00:16.5]} 35. fxg6+ {[%clk 0:00:08.7]} 35... Kxg6 {[%clk 0:00:16.8]} 36. Rd3
{[%clk 0:00:09.4]} 36... Rb5 {[%clk 0:00:15.2]} 37. Nd2 {[%clk 0:00:09]} 37...
Bb7 {[%clk 0:00:14.3]} 38. Rd6+ {[%clk 0:00:07.5]} 38... Kh7 {[%clk 0:00:13.9]}
39. Rh1 {[%clk 0:00:07.8]} 39... Rb2 {[%clk 0:00:13.3]} 40. Rhxh6+ {[%clk
0:00:08.1]} 40... Kg7 {[%clk 0:00:12.4]} 41. Rhg6+ {[%clk 0:00:07.4]} 41... Kf8
{[%clk 0:00:11.9]} 42. Kg3 {[%clk 0:00:07.2]} 42... Rxa2 {[%clk 0:00:10.5]} 43.
Rgf6 {[%clk 0:00:07]} 43... Rxf6 {[%clk 0:00:07.6]} 44. Rxf6+ {[%clk 0:00:07.7]}
44... Ke7 {[%clk 0:00:08.5]} 45. Rxb6 {[%clk 0:00:08.3]} 45... Bd5 {[%clk
0:00:08.4]} 46. c4 {[%clk 0:00:08.2]} 46... Rxd2 {[%clk 0:00:08.4]} 47. cxd5
{[%clk 0:00:08.4]} 47... Rxd5 {[%clk 0:00:09.3]} 48. Rb4 {[%clk 0:00:09]} 48...
Kf6 {[%clk 0:00:09.4]} 49. Re4 {[%clk 0:00:08.8]} 49... Kg6 {[%clk 0:00:09.8]}
50. f4 {[%clk 0:00:09.1]} 1-0

[Event "*** Titled Tuesday Blitz"]
[Site "Chess.com"]
[Date "2020.04.21"]
[Round "4"]
[White "MichailovM"]
[Black "Vamostodorecto"]
[Result "0-1"]
[WhiteElo "2300"]
[BlackElo "2486"]
[TimeControl "180+1"]
[EndTime "10:40:57 PDT"]
[Termination "Vamostodorecto won on time"]

1. e4 {[%clk 0:03:00.6]} 1... e5 {[%clk 0:02:59.3]} 2. Nf3 {[%clk 0:02:59.9]}
2... Nc6 {[%clk 0:02:59.5]} 3. Bb5 {[%clk 0:03:00.3]} 3... a6 {[%clk 0:02:58.5]}
4. Ba4 {[%clk 0:03:00.6]} 4... Nf6 {[%clk 0:02:58.4]} 5. O-O {[%clk 0:03:01.2]}
5... Be7 {[%clk 0:02:57.9]} 6. Re1 {[%clk 0:03:01.5]} 6... b5 {[%clk 0:02:58.5]}
7. Bb3 {[%clk 0:03:02.1]} 7... d6 {[%clk 0:02:59.3]} 8. c3 {[%clk 0:03:02.2]}
8... O-O {[%clk 0:02:59.3]} 9. h3 {[%clk 0:03:02.8]} 9... Na5 {[%clk 0:02:59.6]}
10. Bc2 {[%clk 0:03:03.1]} 10... c5 {[%clk 0:03:00.3]} 11. d4 {[%clk 0:03:03.8]}
11... Nd7 {[%clk 0:03:00.6]} 12. Nbd2 {[%clk 0:03:04.4]} 12... exd4 {[%clk
0:03:00.8]} 13. cxd4 {[%clk 0:03:04.5]} 13... Nc6 {[%clk 0:03:01.5]} 14. d5
{[%clk 0:03:03.8]} 14... Nce5 {[%clk 0:03:01.4]} 15. Nh2 {[%clk 0:02:59.7]}
15... c4 {[%clk 0:03:01.1]} 16. Ndf1 {[%clk 0:02:59.6]} 16... Bf6 {[%clk
0:02:54.6]} 17. f4 {[%clk 0:02:55.7]} 17... Ng6 {[%clk 0:02:54.3]} 18. Ng4
{[%clk 0:02:53.4]} 18... Nc5 {[%clk 0:02:41.6]} 19. Rb1 {[%clk 0:02:25.6]} 19...
b4 {[%clk 0:02:33.9]} 20. Nxf6+ {[%clk 0:02:24.1]} 20... Qxf6 {[%clk 0:02:33.9]}
21. Qf3 {[%clk 0:02:24.1]} 21... a5 {[%clk 0:02:18.5]} 22. Be3 {[%clk
0:02:18.3]} 22... b3 {[%clk 0:02:10.9]} 23. axb3 {[%clk 0:02:03.3]} 23... cxb3
{[%clk 0:02:11.8]} 24. e5 {[%clk 0:01:54.2]} 24... Nxe5 {[%clk 0:01:43.4]} 25.
Bxh7+ {[%clk 0:01:53.7]} 25... Kxh7 {[%clk 0:01:41.7]} 26. Qh5+ {[%clk
0:01:53.7]} 26... Qh6 {[%clk 0:01:23.4]} 27. Qxh6+ {[%clk 0:01:53.1]} 27... gxh6
{[%clk 0:01:24.3]} 28. fxe5 {[%clk 0:01:53.6]} 28... Nd3 {[%clk 0:01:25]} 29.
Red1 {[%clk 0:01:22.7]} 29... Nxe5 {[%clk 0:01:24]} 30. Rbc1 {[%clk 0:01:23.1]}
30... a4 {[%clk 0:01:18.4]} 31. Bd4 {[%clk 0:01:21.8]} 31... Rg8 {[%clk
0:01:02.1]} 32. Kf2 {[%clk 0:01:15]} 32... a3 {[%clk 0:00:57.8]} 33. bxa3 {[%clk
0:01:14.7]} 33... Rxa3 {[%clk 0:00:58.7]} 34. Bxe5 {[%clk 0:01:05.3]} 34... dxe5
{[%clk 0:00:59.6]} 35. Rc7 {[%clk 0:01:03.1]} 35... Ra2+ {[%clk 0:00:31.2]} 36.
Ke3 {[%clk 0:00:59.6]} 36... b2 {[%clk 0:00:20.6]} 37. Nd2 {[%clk 0:00:46.2]}
37... Rxg2 {[%clk 0:00:19]} 38. Nb1 {[%clk 0:00:18.6]} 38... Bxh3 {[%clk
0:00:17.9]} 39. Rxf7+ {[%clk 0:00:16.9]} 39... Kg6 {[%clk 0:00:17.3]} 40. Rb7
{[%clk 0:00:14.2]} 40... Bf5 {[%clk 0:00:14.4]} 41. Nc3 {[%clk 0:00:05.5]} 41...
Rg3+ {[%clk 0:00:12]} 42. Kf2 {[%clk 0:00:01.7]} 42... Rxc3 {[%clk 0:00:09.7]}
43. Rg1+ {[%clk 0:00:02]} 43... Kf6 {[%clk 0:00:06.8]} 44. Rb6+ {[%clk 0:00:02]}
44... Ke7 {[%clk 0:00:06.2]} 0-1

[Event "*** Titled Tuesday Blitz"]
[Site "Chess.com"]
[Date "2020.04.21"]
[Round "4"]
[White "keepitcool9499"]
[Black "Morshynska"]
[Result "1-0"]
[WhiteElo "2399"]
[BlackElo "2127"]
[TimeControl "180+1"]
[EndTime "10:40:58 PDT"]
[Termination "keepitcool9499 won by resignation"]

1. d4 {[%clk 0:03:00.9]} 1... d5 {[%clk 0:02:59.6]} 2. c4 {[%clk 0:03:00.9]}
2... c6 {[%clk 0:02:59.3]} 3. cxd5 {[%clk 0:03:00.5]} 3... cxd5 {[%clk
0:03:00.2]} 4. Nc3 {[%clk 0:03:00.1]} 4... Nf6 {[%clk 0:02:59.9]} 5. Bf4 {[%clk
0:03:00.3]} 5... a6 {[%clk 0:02:58.2]} 6. Nf3 {[%clk 0:03:00.5]} 6... Nc6 {[%clk
0:02:56.6]} 7. e3 {[%clk 0:03:00.1]} 7... e6 {[%clk 0:02:55.4]} 8. Bg3 {[%clk
0:02:59.3]} 8... Bd6 {[%clk 0:02:54.4]} 9. Bd3 {[%clk 0:02:59.7]} 9... O-O
{[%clk 0:02:52.5]} 10. Rc1 {[%clk 0:02:59.4]} 10... Qe7 {[%clk 0:02:46.7]} 11.
Bb1 {[%clk 0:02:57.2]} 11... Bd7 {[%clk 0:02:39.7]} 12. Ne5 {[%clk 0:02:47.9]}
12... Bxe5 {[%clk 0:02:15.9]} 13. dxe5 {[%clk 0:02:46.6]} 13... Ne8 {[%clk
0:02:14]} 14. O-O {[%clk 0:02:43.2]} 14... f6 {[%clk 0:02:03.4]} 15. exf6 {[%clk
0:02:38.2]} 15... Nxf6 {[%clk 0:01:53.3]} 16. Na4 {[%clk 0:02:36.2]} 16... Rae8
{[%clk 0:01:42.9]} 17. Nc5 {[%clk 0:02:23.2]} 17... Bc8 {[%clk 0:01:42.2]} 18.
e4 {[%clk 0:02:19.5]} 18... Rd8 {[%clk 0:01:26.2]} 19. e5 {[%clk 0:02:14.9]}
19... Nd7 {[%clk 0:01:08.1]} 20. Nxd7 {[%clk 0:01:58.6]} 20... Rxd7 {[%clk
0:01:09]} 21. f4 {[%clk 0:01:55.7]} 21... g6 {[%clk 0:00:35.4]} 22. Qg4 {[%clk
0:01:52.4]} 22... Qf7 {[%clk 0:00:24.4]} 23. Bh4 {[%clk 0:01:42]} 23... Ne7
{[%clk 0:00:20.5]} 24. Bxe7 {[%clk 0:01:32.8]} 24... Qxe7 {[%clk 0:00:21.4]} 25.
f5 {[%clk 0:01:17.7]} 25... exf5 {[%clk 0:00:21.2]} 26. Bxf5 {[%clk 0:01:16.9]}
26... Rc7 {[%clk 0:00:12.9]} 27. Rxc7 {[%clk 0:00:53.4]} 27... Qxc7 {[%clk
0:00:13.8]} 28. Be6+ {[%clk 0:00:52.9]} 28... Bxe6 {[%clk 0:00:12.5]} 29. Qxe6+
{[%clk 0:00:53.8]} 29... Kg7 {[%clk 0:00:12.2]} 30. Rxf8 {[%clk 0:00:43.3]}
30... Kxf8 {[%clk 0:00:13.1]} 31. Qf6+ {[%clk 0:00:39.4]} 31... Kg8 {[%clk
0:00:11]} 32. h3 {[%clk 0:00:29.4]} 32... Qc1+ {[%clk 0:00:08.5]} 33. Kh2 {[%clk
0:00:28.2]} 33... Qxb2 {[%clk 0:00:08.7]} 34. Qd8+ {[%clk 0:00:21.2]} 34... Kf7
{[%clk 0:00:08.3]} 35. Qxd5+ {[%clk 0:00:18.6]} 35... Ke7 {[%clk 0:00:07.3]} 36.
Qd6+ {[%clk 0:00:17.1]} 36... Ke8 {[%clk 0:00:07.3]} 37. e6 {[%clk 0:00:16.7]}
37... Qb5 {[%clk 0:00:04.1]} 38. e7 {[%clk 0:00:12.5]} 38... Qd7 {[%clk
0:00:03.1]} 39. Qb8+ {[%clk 0:00:08.9]} 39... Kxe7 {[%clk 0:00:03.1]} 40. Qh8
{[%clk 0:00:08.3]} 40... Qd6+ {[%clk 0:00:03.8]} 41. Kg1 {[%clk 0:00:07.9]}
41... Qd7 {[%clk 0:00:04.3]} 42. Qxh7+ {[%clk 0:00:07.2]} 42... Kd6 {[%clk
0:00:05.2]} 43. Qxg6+ {[%clk 0:00:06.4]} 43... Kc7 {[%clk 0:00:05.6]} 44. Qc2+
{[%clk 0:00:05.9]} 44... Qc6 {[%clk 0:00:05.1]} 45. Qxc6+ {[%clk 0:00:05.4]}
45... Kxc6 {[%clk 0:00:06]} 46. Kf2 {[%clk 0:00:05.7]} 46... b5 {[%clk
0:00:05.3]} 47. Ke2 {[%clk 0:00:05.6]} 47... Kc5 {[%clk 0:00:05.5]} 48. Kd3
{[%clk 0:00:05.6]} 48... Kb4 {[%clk 0:00:05.6]} 49. Kc2 {[%clk 0:00:05.5]} 49...
Ka3 {[%clk 0:00:06.5]} 50. Kb1 {[%clk 0:00:05.3]} 50... b4 {[%clk 0:00:07.4]}
51. h4 {[%clk 0:00:04.6]} 51... a5 {[%clk 0:00:07.1]} 52. h5 {[%clk 0:00:03.4]}
52... a4 {[%clk 0:00:08]} 53. h6 {[%clk 0:00:03.1]} 53... b3 {[%clk 0:00:08.9]}
54. axb3 {[%clk 0:00:03.1]} 54... axb3 {[%clk 0:00:08]} 55. h7 {[%clk 0:00:04]}
1-0

[Event "*** Titled Tuesday Blitz"]
[Site "Chess.com"]
[Date "2020.04.21"]
[Round "4"]
[White "m_ezat"]
[Black "colegiodemadrid"]
[Result "1-0"]
[WhiteElo "2512"]
[BlackElo "2309"]
[TimeControl "180+1"]
[EndTime "10:41:00 PDT"]
[Termination "m_ezat won on time"]

1. d4 {[%clk 0:03:00.9]} 1... Nf6 {[%clk 0:02:58.9]} 2. c4 {[%clk 0:03:00.3]}
2... g6 {[%clk 0:02:57]} 3. Nc3 {[%clk 0:02:59.6]} 3... Bg7 {[%clk 0:02:56.2]}
4. e4 {[%clk 0:02:59.6]} 4... d6 {[%clk 0:02:56.5]} 5. Be2 {[%clk 0:02:59.4]}
5... O-O {[%clk 0:02:56.3]} 6. Bg5 {[%clk 0:02:59.5]} 6... h6 {[%clk 0:02:45.7]}
7. Be3 {[%clk 0:02:58.8]} 7... c5 {[%clk 0:02:42]} 8. d5 {[%clk 0:02:57.8]} 8...
e6 {[%clk 0:02:42]} 9. Qd2 {[%clk 0:02:56.8]} 9... exd5 {[%clk 0:02:38.3]} 10.
exd5 {[%clk 0:02:56.5]} 10... Kh7 {[%clk 0:02:32.5]} 11. h3 {[%clk 0:02:55.7]}
11... Re8 {[%clk 0:02:31.5]} 12. Nf3 {[%clk 0:02:55.7]} 12... Nbd7 {[%clk
0:02:26.2]} 13. O-O {[%clk 0:02:49.5]} 13... Ne4 {[%clk 0:02:05.1]} 14. Nxe4
{[%clk 0:02:48.2]} 14... Rxe4 {[%clk 0:02:06]} 15. Bd3 {[%clk 0:02:48.4]} 15...
Re8 {[%clk 0:02:04.3]} 16. Rae1 {[%clk 0:02:43.3]} 16... Nf6 {[%clk 0:01:57.4]}
17. Bf4 {[%clk 0:02:40.3]} 17... Rxe1 {[%clk 0:01:54.8]} 18. Rxe1 {[%clk
0:02:39.7]} 18... Nh5 {[%clk 0:01:30.3]} 19. Bh2 {[%clk 0:02:37.7]} 19... Qf6
{[%clk 0:01:30.1]} 20. Re8 {[%clk 0:01:59.9]} 20... b6 {[%clk 0:00:48.6]} 21.
Qe2 {[%clk 0:01:58.8]} 21... Nf4 {[%clk 0:00:39.1]} 22. Bxf4 {[%clk 0:01:57.7]}
22... Qxf4 {[%clk 0:00:40]} 23. g3 {[%clk 0:01:52.5]} 23... Qc1+ {[%clk
0:00:38.4]} 24. Kh2 {[%clk 0:01:51.6]} 24... Qxb2 {[%clk 0:00:28.6]} 25. Qxb2
{[%clk 0:01:42.6]} 25... Bxb2 {[%clk 0:00:29.5]} 26. Rd8 {[%clk 0:01:42.7]}
26... Bb7 {[%clk 0:00:23.1]} 27. Rd7 {[%clk 0:01:38.5]} 27... Ba6 {[%clk
0:00:20.4]} 28. Rxf7+ {[%clk 0:01:37.6]} 28... Bg7 {[%clk 0:00:20.5]} 29. Rd7
{[%clk 0:01:26.3]} 29... Rf8 {[%clk 0:00:20.6]} 30. Kg2 {[%clk 0:01:26.5]} 30...
Bc8 {[%clk 0:00:18.9]} 31. Rxd6 {[%clk 0:01:23.3]} 31... Bxh3+ {[%clk
0:00:19.5]} 32. Kxh3 {[%clk 0:01:22.7]} 32... Rxf3 {[%clk 0:00:20.1]} 33. Bxg6+
{[%clk 0:01:23]} 33... Kg8 {[%clk 0:00:19.7]} 34. Kg2 {[%clk 0:01:19.5]} 34...
Rc3 {[%clk 0:00:19.2]} 35. Rd8+ {[%clk 0:01:17.9]} 35... Bf8 {[%clk 0:00:19.4]}
36. d6 {[%clk 0:00:53.6]} 36... Rxc4 {[%clk 0:00:19.4]} 37. Bf5 {[%clk
0:00:46.7]} 37... Rd4 {[%clk 0:00:19.6]} 38. d7 {[%clk 0:00:46.7]} 38... Kf7
{[%clk 0:00:19.2]} 39. Re8 {[%clk 0:00:45.1]} 39... Be7 {[%clk 0:00:18.8]} 40.
Ra8 {[%clk 0:00:42.8]} 40... Kf6 {[%clk 0:00:18.7]} 41. Bh3 {[%clk 0:00:39.3]}
41... a5 {[%clk 0:00:18]} 42. Rb8 {[%clk 0:00:38.5]} 42... Rd6 {[%clk
0:00:18.4]} 43. Rc8 {[%clk 0:00:34.3]} 43... a4 {[%clk 0:00:15.6]} 44. Bg4
{[%clk 0:00:33.6]} 44... a3 {[%clk 0:00:15.1]} 45. f4 {[%clk 0:00:32.9]} 45...
Rd2+ {[%clk 0:00:14.7]} 46. Kh3 {[%clk 0:00:30.2]} 46... Rxa2 {[%clk 0:00:14.9]}
47. Rc6+ {[%clk 0:00:30.2]} 47... Kf7 {[%clk 0:00:14.6]} 48. Bh5+ {[%clk
0:00:30.1]} 48... Kg7 {[%clk 0:00:13.8]} 49. Re6 {[%clk 0:00:26.4]} 49... Bd8
{[%clk 0:00:10.6]} 50. Re8 {[%clk 0:00:26.3]} 50... Bf6 {[%clk 0:00:11.1]} 51.
Re6 {[%clk 0:00:22.9]} 51... Rd2 {[%clk 0:00:09.9]} 52. Rxb6 {[%clk 0:00:16.3]}
52... a2 {[%clk 0:00:10.2]} 53. Rb7 {[%clk 0:00:14.8]} 53... a1=Q {[%clk
0:00:10.4]} 54. d8=Q+ {[%clk 0:00:13.5]} 54... Be7 {[%clk 0:00:08.2]} 55. Qxe7+
{[%clk 0:00:13.3]} 1-0

[Event "*** Titled Tuesday Blitz"]
[Site "Chess.com"]
[Date "2020.04.21"]
[Round "4"]
[White "mshuaau0"]
[Black "The_Machine04"]
[Result "0-1"]
[WhiteElo "2105"]
[BlackElo "2339"]
[TimeControl "180+1"]
[EndTime "10:41:00 PDT"]
[Termination "The_Machine04 won by checkmate"]

1. e4 {[%clk 0:03:00.9]} 1... d6 {[%clk 0:02:50.4]} 2. d4 {[%clk 0:03:00.1]}
2... Nf6 {[%clk 0:02:50.1]} 3. Bd3 {[%clk 0:02:59.8]} 3... e5 {[%clk 0:02:50]}
4. dxe5 {[%clk 0:02:58.3]} 4... dxe5 {[%clk 0:02:50.9]} 5. h3 {[%clk 0:02:56.7]}
5... Bc5 {[%clk 0:02:47.6]} 6. Nf3 {[%clk 0:02:56.4]} 6... Nbd7 {[%clk
0:02:43.9]} 7. O-O {[%clk 0:02:55.8]} 7... O-O {[%clk 0:02:43.6]} 8. Nc3 {[%clk
0:02:55.8]} 8... c6 {[%clk 0:02:43.3]} 9. Qe2 {[%clk 0:02:53.2]} 9... Re8 {[%clk
0:02:42.8]} 10. Rd1 {[%clk 0:02:52.6]} 10... Qc7 {[%clk 0:02:42]} 11. a3 {[%clk
0:02:51.4]} 11... a5 {[%clk 0:02:41.1]} 12. Be3 {[%clk 0:02:47.6]} 12... b6
{[%clk 0:02:36.8]} 13. Qe1 {[%clk 0:02:42.1]} 13... Bxe3 {[%clk 0:02:35.6]} 14.
Qxe3 {[%clk 0:02:41.7]} 14... Nc5 {[%clk 0:02:35.8]} 15. Bf1 {[%clk 0:02:40.7]}
15... Be6 {[%clk 0:02:27.6]} 16. g4 {[%clk 0:02:28.5]} 16... Rad8 {[%clk
0:02:16.7]} 17. b4 {[%clk 0:02:23.4]} 17... Nb7 {[%clk 0:02:08]} 18. Ng5 {[%clk
0:02:15.9]} 18... Bc8 {[%clk 0:01:56.6]} 19. Bg2 {[%clk 0:02:15.2]} 19... h6
{[%clk 0:01:55]} 20. Nf3 {[%clk 0:02:15]} 20... Qe7 {[%clk 0:01:46.2]} 21. Qxb6
{[%clk 0:02:07.2]} 21... axb4 {[%clk 0:01:44.7]} 22. axb4 {[%clk 0:02:04.3]}
22... Qe6 {[%clk 0:01:38.3]} 23. Rxd8 {[%clk 0:01:45.5]} 23... Rxd8 {[%clk
0:01:39.2]} 24. Ra7 {[%clk 0:01:26.9]} 24... Rd7 {[%clk 0:01:36.3]} 25. Ra8
{[%clk 0:01:10.6]} 25... Rd8 {[%clk 0:01:36.1]} 26. Rb8 {[%clk 0:01:09.5]} 26...
Nd7 {[%clk 0:01:32.4]} 27. Qc7 {[%clk 0:01:01.7]} 27... Nxb8 {[%clk 0:01:31.2]}
28. Qxb8 {[%clk 0:01:02]} 28... f6 {[%clk 0:01:24.2]} 29. b5 {[%clk 0:01:00.1]}
29... Qd6 {[%clk 0:01:17.1]} 30. Qxd6 {[%clk 0:00:55.5]} 30... Rxd6 {[%clk
0:01:18]} 31. bxc6 {[%clk 0:00:55.7]} 31... Rxc6 {[%clk 0:01:18.6]} 32. Nd5
{[%clk 0:00:55.8]} 32... Rxc2 {[%clk 0:01:13.8]} 33. Nh4 {[%clk 0:00:55]} 33...
Be6 {[%clk 0:01:09.9]} 34. Nf5 {[%clk 0:00:52.4]} 34... Bxf5 {[%clk 0:01:03.4]}
35. gxf5 {[%clk 0:00:49.3]} 35... Nd6 {[%clk 0:00:59.4]} 36. Bf3 {[%clk
0:00:44.8]} 36... Nc4 {[%clk 0:00:49.6]} 37. Kg2 {[%clk 0:00:41.6]} 37... Nd2
{[%clk 0:00:48.5]} 38. Kg3 {[%clk 0:00:39.2]} 38... Rc4 {[%clk 0:00:43]} 39. Ne3
{[%clk 0:00:29.8]} 39... Nxe4+ {[%clk 0:00:37.2]} 40. Kg2 {[%clk 0:00:26.6]}
40... Rd4 {[%clk 0:00:35.1]} 41. Nc2 {[%clk 0:00:22]} 41... Ra4 {[%clk
0:00:32.9]} 42. h4 {[%clk 0:00:19.6]} 42... Nd6 {[%clk 0:00:27.8]} 43. Bd5+
{[%clk 0:00:15.1]} 43... Kf8 {[%clk 0:00:27.5]} 44. Be6 {[%clk 0:00:14.8]} 44...
Rxh4 {[%clk 0:00:23.9]} 45. Ne3 {[%clk 0:00:03.4]} 45... Rf4 {[%clk 0:00:23.8]}
46. Nd5 {[%clk 0:00:03.1]} 46... Rxf5 {[%clk 0:00:20.5]} 47. Bxf5 {[%clk
0:00:03.2]} 47... Nxf5 {[%clk 0:00:21.4]} 48. f4 {[%clk 0:00:03.1]} 48... e4
{[%clk 0:00:20.2]} 49. Kf2 {[%clk 0:00:03.4]} 49... Kf7 {[%clk 0:00:20]} 50. Kg2
{[%clk 0:00:03.8]} 50... Ke6 {[%clk 0:00:19.6]} 51. Kf2 {[%clk 0:00:04.7]} 51...
Kxd5 {[%clk 0:00:19.6]} 52. Ke2 {[%clk 0:00:05.6]} 52... Kd4 {[%clk 0:00:19.8]}
53. Kf2 {[%clk 0:00:06.3]} 53... e3+ {[%clk 0:00:20.2]} 54. Kf3 {[%clk
0:00:06.8]} 54... Kd3 {[%clk 0:00:20.5]} 55. Kg4 {[%clk 0:00:07.7]} 55... g6
{[%clk 0:00:20]} 56. Kf3 {[%clk 0:00:07]} 56... e2 {[%clk 0:00:20]} 57. Kg4
{[%clk 0:00:05.9]} 57... e1=Q {[%clk 0:00:18.5]} 58. Kf3 {[%clk 0:00:05.5]}
58... Qg3# {[%clk 0:00:18.5]} 0-1